fUSD/lending_fUSD_20240519
["ID","MTS","AMOUNT","RATE_DAILY","PERIOD"]
[327446314,1716077495543,-961.36,0.00029315,2]
[327446315,1716077495552,-1397.82,0.00029315,2]
[327446316,1716077495561,-620.55,0.00029315,2]
[327446317,1716077495571,-500.0,0.00029315,2]
[327446318,1716077495580,-500.0,0.00029315,2]
[327446319,1716077495589,-500.0,0.00029315,2]
[327446320,1716077495599,-788.47,0.00029315,2]
[327446321,1716077495608,-702.58,0.00029315,2]
[327446322,1716077495618,-406.69,0.00029315,2]
[327446323,1716077495627,-717.76,0.00029315,2]
[327446324,1716077495636,-1107.18,0.00029315,2]
[327446325,1716077495646,-165.7926824,0.00029315,2]
[327446326,1716077495655,-500.0,0.00029315,2]
[327446327,1716077495665,-1418.57,0.00029315,2]
[327446328,1716077495674,-500.0,0.00029315,2]
[327446329,1716077495685,-500.0,0.00029315,2]
[327446330,1716077495695,-548.41,0.00029315,2]
[327446331,1716077495704,-731.89,0.00029315,2]
[327446332,1716077495714,-654.67,0.00029315,2]
[327446333,1716077495723,-500.0,0.00029315,2]
[327446334,1716077495734,-500.0,0.00029315,2]
[327446335,1716077495745,-575.3,0.00029315,2]
[327446336,1716077495755,-500.0,0.00029315,2]
[327446337,1716077495766,-500.0,0.00029315,2]
[327446338,1716077495775,-753.87,0.00029315,2]
[327446339,1716077495785,-558.06,0.00029315,2]
[327446340,1716077495794,-500.0,0.00029315,2]
[327446341,1716077495804,-500.0,0.00029315,2]
[327446342,1716077495813,-592.45,0.00029315,2]
[327446343,1716077495823,-1470.72,0.00029315,2]
[327446344,1716077495832,-735.2,0.00029315,2]
[327446345,1716077495842,-897.8,0.00029315,2]
[327446346,1716077495851,-500.0,0.00029315,2]
[327446347,1716077495860,-500.0,0.00029315,2]
[327446348,1716077495871,-500.0,0.00029315,2]
[327446349,1716077495881,-1194.38,0.00029315,2]
[327446350,1716077495890,-894.37,0.00029315,2]
[327446351,1716077495900,-567.91,0.00029315,2]
[327446352,1716077495909,-1413.9,0.00029315,2]
[327446353,1716077495919,-838.92,0.00029315,2]
[327446354,1716077495928,-500.0,0.00029315,2]
[327446355,1716077495938,-579.0,0.00029315,2]
[327446356,1716077495947,-500.0,0.00029315,2]
[327446357,1716077495956,-1047.05,0.00029315,2]
[327446358,1716077495967,-151.0,0.00029315,7]
[327446359,1716077495976,-1288.52,0.00029315,2]
[327446360,1716077495985,-512.22,0.00029315,2]
[327446361,1716077495994,-737.25,0.00029315,2]
[327446362,1716077496003,-151.0,0.00029315,7]
[327446363,1716077496013,-973.22,0.00029315,2]
[327446364,1716077496022,-1081.43,0.00029315,2]
[327446365,1716077496031,-500.0,0.00029315,2]
[327446366,1716077496040,-539.38,0.00029315,2]
[327446367,1716077496049,-359.83796426,0.00029315,2]
[327446368,1716077496058,-771.25,0.00029315,2]
[327446369,1716077496067,-500.0,0.00029315,2]
[327446370,1716077496076,-620.78,0.00029315,2]
[327446371,1716077496085,-500.0,0.00029315,2]
[327446372,1716077496094,-500.0,0.00029315,2]
[327446373,1716077496103,-500.0,0.00029315,2]
[327446374,1716077496112,-616.62756992,0.00029315,2]
[327446375,1716077496123,-500.0,0.00029315,2]
[327446376,1716077496133,-501.17,0.00029315,2]
[327446377,1716077496142,-500.0,0.00029315,2]
[327446378,1716077496151,-500.0,0.00029315,2]
[327446379,1716077496161,-500.0,0.00029315,2]
[327446380,1716077496170,-500.0,0.00029315,2]
[327446381,1716077496188,-500.0,0.00029315,2]
[327446382,1716077496200,-500.0,0.00029315,2]
[327446383,1716077496210,-862.09,0.00029315,2]
[327446384,1716077496220,-500.0,0.00029315,2]
[327446385,1716077496230,-500.0,0.00029315,2]
[327446386,1716077496240,-500.0,0.00029315,2]
[327446387,1716077496249,-500.0,0.00029315,2]
[327446388,1716077496259,-596.95,0.00029315,2]
[327446389,1716077496269,-881.6,0.00029315,2]
[327446390,1716077496279,-500.0,0.00029315,2]
[327446391,1716077496289,-500.0,0.00029315,2]
[327446392,1716077496298,-720.84,0.00029315,2]
[327446393,1716077496307,-662.13,0.00029315,2]
[327446394,1716077496317,-237.740073,0.00029315,7]
[327446395,1716077496327,-500.0,0.00029315,2]
[327446396,1716077496337,-500.0,0.00029315,2]
[327446397,1716077496346,-1121.07,0.00029315,2]
[327446398,1716077496356,-500.0,0.00029315,2]
[327446399,1716077496366,-500.0,0.00029315,2]
[327446400,1716077496376,-875.83,0.00029315,2]
[327446401,1716077496386,-500.0,0.00029315,2]
[327446402,1716077496395,-500.0,0.00029315,2]
[327446403,1716077496405,-500.0,0.00029315,2]
[327446404,1716077496414,-695.7,0.00029315,2]
[327446405,1716077496424,-1392.95,0.00029315,2]
[327446406,1716077496434,-500.0,0.00029315,2]
[327446407,1716077496444,-500.0,0.00029315,2]
[327446408,1716077496454,-698.81,0.00029315,2]
[327446409,1716077496464,-500.0,0.00029315,2]
[327446410,1716077496474,-791.91,0.00029315,2]
[327446411,1716077496484,-1456.87,0.00029315,2]
[327446412,1716077496494,-151.0,0.00029315,7]
[327446413,1716077496505,-1314.57,0.00029315,2]
[327446414,1716077496518,-574.86,0.00029315,2]
[327446415,1716077496527,-2275.44,0.00029315,2]
[327446416,1716077496538,-500.0,0.00029315,2]
[327446417,1716077496548,-511.71,0.00029315,2]
[327446418,1716077496558,-500.0,0.00029315,2]
[327446419,1716077496568,-2814.42,0.00029315,2]
[327446420,1716077496578,-500.0,0.00029315,2]
[327446421,1716077496588,-501.32,0.00029315,2]
[327446422,1716077496598,-500.0,0.00029315,2]
[327446423,1716077496608,-1303.92,0.00029315,2]
[327446424,1716077496619,-810.63,0.00029315,2]
[327446425,1716077496628,-500.0,0.00029315,2]
[327446426,1716077496638,-4678.13,0.00029315,2]
[327446427,1716077496648,-500.0,0.00029315,2]
[327446428,1716077496658,-2780.12,0.00029315,2]
[327446429,1716077496667,-516.01,0.00029315,2]
[327446430,1716077496677,-887.4,0.00029315,2]
[327446431,1716077496692,-500.0,0.00029315,2]
[327446432,1716077496701,-514.0,0.00029315,2]
[327446433,1716077496711,-725.59,0.00029315,2]
[327446434,1716077496720,-500.0,0.00029315,2]
[327446435,1716077496731,-1154.5,0.00029315,2]
[327446436,1716077496740,-500.0,0.00029315,2]
[327446437,1716077496749,-1503.52,0.00029315,2]
[327446438,1716077496760,-500.0,0.00029315,2]
[327446439,1716077496771,-1444.2,0.00029315,2]
[327446440,1716077496781,-500.0,0.00029315,2]
[327446441,1716077496790,-1032.28,0.00029315,2]
[327446442,1716077496799,-500.0,0.00029315,2]
[327446443,1716077496809,-500.0,0.00029315,2]
[327446444,1716077496818,-500.0,0.00029315,2]
[327446445,1716077496827,-1522.9,0.00029315,2]
[327446446,1716077496837,-561.95,0.00029315,2]
[327446447,1716077496846,-7233.9,0.00029315,2]
[327446448,1716077496857,-776.17,0.00029315,2]
[327446449,1716077496866,-500.0,0.00029315,2]
[327446450,1716077496876,-605.79,0.00029315,2]
[327446451,1716077496885,-1300.37,0.00029315,2]
[327446452,1716077496895,-1051.93,0.00029315,2]
[327446453,1716077496904,-500.0,0.00029315,2]
[327446454,1716077496913,-6024.88,0.00029315,2]
[327446455,1716077496922,-500.0,0.00029315,2]
[327446456,1716077496932,-5592.85,0.00029315,2]
[327446457,1716077496941,-151.0,0.00029315,7]
[327446458,1716077496951,-1220.15,0.00029315,2]
[327446459,1716077496960,-11547.64,0.00029315,2]
[327446460,1716077496969,-500.0,0.00029315,2]
[327446461,1716077496978,-191.13278683,0.00029315,2]
[327446462,1716077496988,-151.0,0.00029315,7]
[327446463,1716077496998,-964.95,0.00029315,2]
[327446464,1716077497007,-500.0,0.00029315,2]
[327446465,1716077497017,-730.61,0.00029315,2]
[327446466,1716077497027,-500.0,0.00029315,2]
[327446467,1716077497036,-684.37,0.00029315,2]
[327446468,1716077497046,-2185.64,0.00029315,2]
[327446469,1716077497056,-523.440221,0.00029315,7]
[327446470,1716077497066,-1150.67,0.00029315,2]
[327446471,1716077497077,-500.0,0.00029315,2]
[327446472,1716077497087,-500.0,0.00029315,2]
[327446473,1716077497097,-922.42,0.00029315,2]
[327446474,1716077497108,-523.440221,0.00029315,7]
[327446475,1716077497119,-714.21,0.00029315,2]
[327446476,1716077497128,-667.74,0.00029315,2]
[327446477,1716077497137,-500.0,0.00029315,2]
[327446478,1716077497147,-624.56,0.00029315,2]
[327446479,1716077497158,-500.0,0.00029315,2]
[327446480,1716077497168,-253.455997,0.00029315,7]
[327446481,1716077497176,-785.83,0.00029315,2]
[327446482,1716077497186,-1993.35,0.00029315,2]
[327446483,1716077497195,-253.455997,0.00029315,7]
[327446484,1716077497205,-261.8,0.00029315,2]
[327446485,1716077497214,-500.0,0.00029315,2]
[327446486,1716077497224,-500.0,0.00029315,2]
[327446487,1716077497233,-593.18,0.00029315,2]
[327446488,1716077497242,-555.98,0.00029315,2]
[327446489,1716077497251,-500.0,0.00029315,2]
[327446490,1716077497265,-708.12,0.00029315,2]
[327446491,1716077497274,-1034.98,0.00029315,2]
[327446492,1716077497284,-500.0,0.00029315,2]
[327446493,1716077497294,-819.64,0.00029315,2]
[327446494,1716077497304,-1062.72,0.00029315,2]
[327446495,1716077497315,-500.0,0.00029315,2]
[327446496,1716077497325,-614.07,0.00029315,2]
[327446497,1716077497337,-500.0,0.00029315,2]
[327446498,1716077497348,-609.38,0.00029315,2]
[327446499,1716077497358,-500.0,0.00029315,2]
[327446500,1716077497369,-6648.46,0.00029315,2]
[327446501,1716077497379,-1688.51,0.00029315,2]
[327446502,1716077497388,-186.431819,0.00029315,7]
[327446503,1716077497397,-564.19,0.00029315,2]
[327446504,1716077497407,-1089.3,0.00029315,2]
[327446505,1716077497418,-186.431819,0.00029315,7]
[327446506,1716077497428,-151.0,0.00029315,7]
[327446507,1716077497439,-846.78,0.00029315,2]
[327446508,1716077497450,-1349.04,0.00029315,2]
[327446509,1716077497461,-830.23,0.00029315,2]
[327446510,1716077497471,-1553.34,0.00029315,2]
[327446511,1716077497480,-1308.68,0.00029315,2]
[327446512,1716077497490,-860.44,0.00029315,2]
[327446513,1716077497499,-608.58,0.00029315,2]
[327446514,1716077497509,-812.28,0.00029315,2]
[327446515,1716077497519,-500.0,0.00029315,2]
[327446516,1716077497528,-500.0,0.00029315,2]
[327446517,1716077497538,-151.0,0.00029315,7]
[327446518,1716077497547,-792.67,0.00029315,2]
[327446519,1716077497557,-500.0,0.00029315,2]
[327446520,1716077497567,-1716.02,0.00029315,2]
[327446521,1716077497577,-613.67,0.00029315,2]
[327446522,1716077497586,-2023.97,0.00029315,2]
[327446523,1716077497596,-616.74,0.00029315,2]
[327446524,1716077497606,-673.43,0.00029315,2]
[327446525,1716077497616,-4593.99,0.00029315,2]
[327446526,1716077497627,-519.79,0.00029315,2]
[327446527,1716077497636,-525.03,0.00029315,2]
[327446528,1716077497646,-500.0,0.00029315,2]
[327446529,1716077497655,-224.890398,0.00029315,7]
[327446530,1716077497665,-1670.46,0.00029315,2]
[327446531,1716077497675,-703.22,0.00029315,2]
[327446532,1716077497687,-502.94,0.00029315,2]
[327446533,1716077497697,-500.0,0.00029315,2]
[327446534,1716077497707,-500.0,0.00029315,2]
[327446535,1716077497717,-936.93,0.00029315,2]
[327446536,1716077497728,-224.890398,0.00029315,7]
[327446537,1716077497738,-894.82,0.00029315,2]
[327446538,1716077497748,-500.0,0.00029315,2]
[327446539,1716077497757,-500.0,0.00029315,2]
[327446540,1716077497768,-500.0,0.00029315,2]
[327446541,1716077497778,-500.0,0.00029315,2]
[327446542,1716077497789,-500.0,0.00029315,2]
[327446543,1716077497798,-500.0,0.00029315,2]
[327446544,1716077497808,-695.82,0.00029315,2]
[327446545,1716077497818,-715.76,0.00029315,2]
[327446546,1716077497828,-3124.26,0.00029315,2]
[327446547,1716077497837,-500.0,0.00029315,2]
[327446548,1716077497847,-500.0,0.00029315,2]
[327446549,1716077497858,-510.06,0.00029315,2]
[327446550,1716077497867,-500.0,0.00029315,2]
[327446551,1716077497878,-151.0,0.00029315,7]
[327446552,1716077497887,-877.57,0.00029315,2]
[327446553,1716077497897,-500.0,0.00029315,2]
[327446554,1716077497907,-1656.39,0.00029315,2]
[327446555,1716077497917,-743.1,0.00029315,2]
[327446556,1716077497927,-6564.04,0.00029315,2]
[327446557,1716077497937,-641.49,0.00029315,2]
[327446558,1716077497946,-4260.91,0.00029315,2]
[327446559,1716077497955,-500.0,0.00029315,2]
[327446560,1716077497965,-697.34,0.00029315,2]
[327446561,1716077497975,-2763.02,0.00029315,2]
[327446562,1716077497984,-858.1,0.00029315,2]
[327446563,1716077497994,-500.0,0.00029315,2]
[327446564,1716077498003,-1791.66263731,0.00029315,2]
[327446565,1716077498042,-402.36,0.00029041,2]
[327446566,1716077498052,-78.42736269,0.00029315,2]
[327446567,1716077498061,-151.56832523,0.00029315,2]
[327446568,1716077498073,-348.43167477,0.00029315,2]
[327446569,1716077498083,-500.0,0.00029315,2]
[327446570,1716077498093,-243.98007832,0.00029315,2]
[327446571,1716077498104,-341.483816,0.00029315,2]
[327446572,1716077498121,-903.86610568,0.00029315,2]
[327446573,1716077498131,-500.0,0.00029315,2]
[327446574,1716077498140,-624.28,0.00029315,2]
[327446575,1716077498150,-550.00549261,0.00029315,2]
[327446576,1716077498160,-780.25180171,0.00029315,2]
[327446577,1716077498172,-1096.41819829,0.00029315,2]
[327446578,1716077498181,-3030.58,0.00029315,2]
[327446579,1716077498191,-151.0,0.00029315,7]
[327446580,1716077498200,-571.74915787,0.00029315,2]
[327446581,1716077498212,-1175.26064,0.00029315,2]
[327446582,1716077498223,-7.19020213,0.00029315,2]
[327446583,1716077498232,-151.0,0.00029315,7]
[327446584,1716077498241,-4440.09,0.00029315,2]
[327446585,1716077498251,-500.0,0.00029315,2]
[327446586,1716077498260,-112.86955298,0.00029315,2]
[327446587,1716077498272,-132.21044702,0.00029315,2]
[327446588,1716077498282,-500.0,0.00029315,2]
[327446589,1716077498291,-919.75,0.00029315,2]
[327446590,1716077498300,-500.0,0.00029315,2]
[327446591,1716077498311,-747.95,0.00029315,2]
[327446592,1716077498321,-466.28955298,0.00029315,2]
[327446593,1716077498332,-1000.87999974,0.00029315,2]
[327446594,1716077498344,-25.06044728,0.00029315,2]
[327446595,1716077498353,-679.67300072,0.00029315,2]
[327446596,1716077498817,-194.46900176,0.00017259,2]
[327446597,1716077498828,-743.61,0.00027397,2]
[327446598,1716077498837,-218.65213999,0.00027671,2]
[327446599,1716077498917,-281.34786001,0.00027671,2]
[327446600,1716077498927,-743.61,0.00027671,2]
[327446601,1716077498936,-500.0,0.00027945,2]
[327446602,1716077498945,-500.0,0.00028219,2]
[327446603,1716077498954,-500.0,0.00028219,2]
[327446604,1716077498964,-500.0,0.00028493,2]
[327446605,1716077498978,-500.0,0.00028493,2]
[327446606,1716077498987,-585.16,0.00028767,2]
[327446607,1716077498997,-117.13699928,0.00029315,2]
[327446608,1716077499006,-4084.75,0.00029315,2]
[327446609,1716077499015,-500.0,0.00029315,2]
[327446610,1716077499025,-500.0,0.00029315,2]
[327446611,1716077499034,-337.47003568,0.00029315,2]
[327446612,1716077499043,-759.03,0.00029315,2]
[327446613,1716077499053,-500.0,0.00029315,2]
[327446614,1716077499062,-500.0,0.00029315,2]
[327446615,1716077499072,-842.68,0.00029315,2]
[327446616,1716077499081,-1573.17,0.00029315,2]
[327446617,1716077499091,-500.0,0.00029315,2]
[327446618,1716077499103,-500.0,0.00029315,2]
[327446619,1716077499113,-500.0,0.00029315,2]
[327446620,1716077499124,-549.28148937,0.00029315,2]
[327446621,1716077499134,-1661.92,0.00029315,2]
[327446622,1716077499143,-1958.77,0.00029315,2]
[327446623,1716077499153,-1716.41,0.00029315,2]
[327446624,1716077499162,-500.0,0.00029315,2]
[327446625,1716077499171,-500.0,0.00029315,2]
[327446626,1716077499180,-682.52,0.00029315,2]
[327446627,1716077499190,-612.02,0.00029315,2]
[327446628,1716077499200,-500.0,0.00029315,2]
[327446629,1716077499209,-691.49,0.00029315,2]
[327446630,1716077499219,-877.84969939,0.00029315,2]
[327446631,1716077499262,-348.14030061,0.00029315,2]
[327446632,1716077499272,-500.0,0.00029315,2]
[327446633,1716077499282,-48.01153839,0.00029315,2]
[327446634,1716077499297,-399.1422912,0.00029315,2]
[327446635,1716077556086,150.0,9.94e-05,2]
[327446636,1716077556107,150.0,9.94e-05,2]
[327446637,1716077556127,150.0,9.94e-05,2]
[327446638,1716077556147,150.0,9.94e-05,2]
[327446639,1716077556182,150.0,9.94e-05,2]
[327446640,1716077556205,150.0,9.94e-05,2]
[327446641,1716077556225,150.0,9.94e-05,2]
[327446642,1716077556246,150.0,9.94e-05,2]
[327446643,1716077556268,150.0,9.94e-05,2]
[327446644,1716077556295,2509.7304,9.94e-05,2]
[327446645,1716077580515,181.84,0.00026513,120]
[327446652,1716078479626,434.6197943,0.0003,90]
[327446654,1716078632282,-402.11166272,0.00013966,2]
[327446655,1716078632292,-162.56418292,0.00013967,2]
[327446656,1716078632302,-1767.65394391,0.00013968,2]
[327446657,1716078632313,-713.07366266,0.00013968,2]
[327446658,1716078632325,-579.73361399,0.00013968,2]
[327446659,1716078632335,-313.86365849,0.00013969,2]
[327446660,1716078632350,-1262.010745,0.00013969,2]
[327446661,1716078632362,-258.12559651,0.00013969,2]
[327446662,1716078632372,-156.54,0.00013973,2]
[327446663,1716078632382,-1810.67,0.0001715,2]
[327446664,1716078632391,-1774.66440349,0.00017159,2]
[327446665,1716078632412,-554.21989651,0.00017159,2]
[327446666,1716078632421,-150.0,0.00017259,2]
[327446667,1716078632431,-105.51344103,0.00017534,2]
[327446668,1716078632444,-45.47655897,0.00017534,2]
[327446669,1716078632455,-206.14344099,0.00018985,2]
[327446670,1716078632467,-3.85655901,0.00018985,2]
[327446671,1716078632477,-499.99,0.00019726,2]
[327446672,1716078632486,-228.0,0.00020883,2]
[327446673,1716078632495,-3721.69496983,0.00021698,2]
[327446674,1716078632527,-580.86539022,0.00021698,2]
[327446675,1716078632539,-63.10963995,0.00021698,2]
[327446676,1716078632549,-530.30541928,0.00021698,2]
[327446677,1716078632593,-2444.26708576,0.00021698,2]
[327446678,1716078632605,-858.29749496,0.00021698,2]
[327446679,1716078632614,-661.0,0.000219,2]
[327446680,1716078632624,-509.13,0.00023672,2]
[327446681,1716078632634,-567.79,0.00023805,2]
[327446682,1716078632643,-151.2,0.0002394,2]
[327446683,1716078632653,-189.52026818,0.00024136,2]
[327446684,1716078632663,-1972.90059136,0.00024326,2]
[327446685,1716078632675,-317.946002,0.00024326,2]
[327446686,1716078632695,-7709.15340664,0.00024326,2]
[327446687,1716078632704,-151.2,0.00024356,2]
[327446688,1716078632714,-176.58,0.0002437,2]
[327446689,1716078632723,-250.0,0.00024658,2]
[327446691,1716078632732,-919.58,0.00024672,2]
[327446693,1716078632742,-164.74024366,0.00024689,2]
[327446696,1716078632751,-250.0,0.00024729,2]
[327446699,1716078632761,-151.2,0.00024772,2]
[327446701,1716078632769,-151.2,0.00025187,2]
[327446703,1716078632779,-504.2,0.00025248,7]
[327446705,1716078632788,-1000.0,0.00025285,2]
[327446708,1716078632798,-504.2,0.0002571,7]
[327446710,1716078632807,-504.2,0.00026171,7]
[327446712,1716078632816,-169.53,0.00026187,2]
[327446714,1716078632825,-504.2,0.00026633,7]
[327446716,1716078632835,-567.79,0.00026781,2]
[327446718,1716078632844,-504.2,0.00027095,7]
[327446720,1716078632855,-1000.0,0.00027099,2]
[327446722,1716078632864,-2653.90192616,0.000271,2]
[327446724,1716078632874,-1770.18022889,0.00027286,2]
[327446732,1716078638329,-459.82134202,0.00027286,2]
[327446733,1716078638339,-5235.92245688,0.00027296,2]
[327446734,1716078638456,-3319.01570001,0.00027296,2]
[327446735,1716078638512,-24203.29032092,0.00027296,2]
[327446736,1716078638522,-35191.4502241,0.00027296,2]
[327446737,1716078638532,-1000.0,0.00027297,2]
[327446738,1716078638543,-10000.0,0.00027297,2]
[327446739,1716078638552,-450.0,0.00027297,2]
[327446740,1716078638562,-1820.1839,0.00027297,2]
[327446741,1716078638571,-1080.1711,0.00027297,2]
[327446742,1716078638581,-2440.20609882,0.00027297,2]
[327446743,1716078638590,-5983.79489043,0.00027297,2]
[327446744,1716078638599,-176.97596354,0.00027297,2]
[327446745,1716078638609,-180.04682824,0.00027297,2]
[327446746,1716078638618,-671.67,0.00027386,3]
[327446747,1716078638627,-269.43582417,0.00027387,2]
[327446748,1716078638637,-155.0,0.00027395,2]
[327446749,1716078638646,-158.82332061,0.00027395,2]
[327446750,1716078638656,-155.0,0.00027395,2]
[327446751,1716078638667,-158.64440687,0.00027395,2]
[327446752,1716078638676,-219.31968758,0.00027395,2]
[327446753,1716078638687,-936.8170768,0.00027395,2]
[327446754,1716078638696,-155.33461273,0.00027395,2]
[327446755,1716078638706,-175.47369555,0.00027395,2]
[327446756,1716078638716,-179.49292044,0.00027395,2]
[327446757,1716078638726,-217.91282524,0.00027395,2]
[327446758,1716078638736,-263.06023858,0.00027395,2]
[327446759,1716078639013,-159.03909377,0.00027395,2]
[327446760,1716078639029,-155.0,0.00027395,2]
[327446761,1716078639039,-201.40366371,0.00027395,2]
[327446762,1716078639050,-373.97275012,0.00027395,2]
[327446763,1716078639060,-1212.7569798,0.00027395,2]
[327446764,1716078639070,-377.88213118,0.00027395,2]
[327446765,1716078639080,-5272.17642688,0.00027396,2]
[327446766,1716078639091,-387.66247867,0.00027397,2]
[327446767,1716078639101,-153.88080458,0.00027397,2]
[327446768,1716078639110,-203.29973538,0.00027397,2]
[327446769,1716078639120,-500.0,0.00027397,2]
[327446770,1716078639131,-500.0,0.00027397,2]
[327446771,1716078639146,-500.0,0.00027397,2]
[327446772,1716078639156,-500.0,0.00027397,2]
[327446773,1716078639167,-681.95,0.00027397,2]
[327446774,1716078639178,-500.0,0.00027397,2]
[327446775,1716078639188,-500.0,0.00027397,2]
[327446776,1716078639199,-500.0,0.00027397,2]
[327446777,1716078639209,-500.0,0.00027397,2]
[327446778,1716078639219,-500.0,0.00027397,2]
[327446779,1716078639229,-500.0,0.00027397,2]
[327446780,1716078639239,-500.0,0.00027397,2]
[327446781,1716078639249,-500.0,0.00027397,2]
[327446782,1716078639262,-500.0,0.00027397,2]
[327446783,1716078639276,-500.0,0.00027397,2]
[327446784,1716078639286,-500.85062852,0.00027397,2]
[327446785,1716078639296,-500.0,0.00027397,2]
[327446786,1716078639306,-500.0,0.00027397,2]
[327446787,1716078639317,-500.0,0.00027397,2]
[327446788,1716078639327,-500.0,0.00027397,2]
[327446789,1716078639337,-500.0,0.00027397,2]
[327446790,1716078639349,-500.0,0.00027397,2]
[327446791,1716078639359,-500.0,0.00027397,2]
[327446792,1716078639370,-500.0,0.00027397,2]
[327446793,1716078639381,-500.0,0.00027397,2]
[327446794,1716078639391,-500.0,0.00027397,2]
[327446795,1716078639400,-500.0,0.00027397,2]
[327446796,1716078639410,-500.0,0.00027397,2]
[327446797,1716078639420,-536.32,0.00027397,2]
[327446798,1716078639431,-500.0,0.00027397,2]
[327446799,1716078639440,-500.0,0.00027397,2]
[327446800,1716078639451,-500.0,0.00027397,2]
[327446801,1716078639461,-500.0,0.00027397,2]
[327446802,1716078639471,-500.0,0.00027397,2]
[327446803,1716078639480,-500.0,0.00027397,2]
[327446804,1716078639490,-500.0,0.00027397,2]
[327446805,1716078639499,-500.0,0.00027397,2]
[327446806,1716078639509,-500.0,0.00027397,2]
[327446807,1716078639519,-500.0,0.00027397,2]
[327446808,1716078639528,-500.0,0.00027397,2]
[327446809,1716078639538,-500.0,0.00027397,2]
[327446810,1716078639547,-500.0,0.00027397,2]
[327446811,1716078639557,-498.39357274,0.00027397,2]
[327446812,1716078639567,-500.0,0.00027397,2]
[327446813,1716078639578,-500.0,0.00027397,2]
[327446814,1716078639588,-500.0,0.00027397,2]
[327446815,1716078639598,-150.0,0.00027397,2]
[327446816,1716078639607,-500.0,0.00027397,2]
[327446817,1716078639617,-500.0,0.00027397,2]
[327446818,1716078639627,-500.0,0.00027397,2]
[327446819,1716078639637,-500.0,0.00027397,2]
[327446820,1716078639648,-500.0,0.00027397,2]
[327446821,1716078639657,-500.0,0.00027397,2]
[327446822,1716078639667,-500.0,0.00027397,2]
[327446823,1716078639678,-500.0,0.00027397,2]
[327446824,1716078639688,-500.0,0.00027397,2]
[327446825,1716078639698,-500.0,0.00027397,2]
[327446826,1716078639708,-500.0,0.00027397,2]
[327446827,1716078639718,-500.0,0.00027397,2]
[327446828,1716078639728,-500.0,0.00027397,2]
[327446829,1716078639737,-500.0,0.00027397,2]
[327446830,1716078639749,-500.0,0.00027397,2]
[327446831,1716078639759,-500.0,0.00027397,2]
[327446832,1716078639769,-500.0,0.00027397,2]
[327446833,1716078639779,-500.0,0.00027397,2]
[327446834,1716078639789,-500.0,0.00027397,2]
[327446835,1716078639798,-500.0,0.00027397,2]
[327446836,1716078639807,-500.0,0.00027397,2]
[327446837,1716078639817,-500.0,0.00027397,2]
[327446838,1716078639826,-500.0,0.00027397,2]
[327446839,1716078639836,-500.0,0.00027397,2]
[327446840,1716078639846,-500.0,0.00027397,2]
[327446841,1716078639855,-500.0,0.00027397,2]
[327446842,1716078639866,-500.0,0.00027397,2]
[327446843,1716078639875,-500.0,0.00027397,2]
[327446844,1716078639885,-500.0,0.00027397,2]
[327446845,1716078639895,-500.0,0.00027397,2]
[327446846,1716078639905,-500.0,0.00027397,2]